fUSD/lending_fUSD_20260606
["ID","MTS","AMOUNT","RATE_DAILY","PERIOD"]
[424312786,1780761076000,-200.0,0.00034899,3]
[424312790,1780761076000,-200.0,0.00034899,3]
[424312791,1780761076000,-200.0,0.00034899,3]
[424312787,1780761076000,-160.0,0.00034899,3]
[424312792,1780761076000,-599.60298507,0.00034899,3]
[424312789,1780761076000,-719.04747942,0.00034899,3]
[424312788,1780761076000,-225.18697532,0.00034899,3]
[424312733,1780761076000,-151.0,0.00034899,3]
[424312768,1780761076000,-280.03725111,0.00034899,3]
[424312772,1780761076000,-10652.17309792,0.00034899,3]
[424312779,1780761076000,-11046.30350254,0.00034899,3]
[424312761,1780761076000,-209.40437684,0.00034899,3]
[424312764,1780761076000,-10272.10520532,0.00034899,3]
[424312737,1780761076000,-233.5188934,0.00034899,3]
[424312739,1780761076000,-1000.0,0.00034899,3]
[424312740,1780761076000,-181.08010149,0.00034899,3]
[424312743,1780761076000,-151.0,0.00034899,3]
[424312746,1780761076000,-1000.0,0.00034899,3]
[424312748,1780761076000,-9552.16786547,0.00034899,3]
[424312745,1780761076000,-251.11897888,0.00034899,3]
[424312747,1780761076000,-927.27566594,0.00034899,3]
[424312754,1780761076000,-250.0,0.00034899,3]
[424312744,1780761076000,-200.0,0.00034899,3]
[424312751,1780761076000,-260.4103811,0.00034899,3]
[424312749,1780761076000,-187.78006524,0.00034899,3]
[424312738,1780761076000,-151.0,0.00034899,3]
[424312752,1780761076000,-1000.0,0.00034899,3]
[424312750,1780761076000,-151.0,0.00034899,3]
[424312763,1780761076000,-151.0,0.00034899,3]
[424312762,1780761076000,-194.72792766,0.00034899,3]
[424312760,1780761076000,-1000.0,0.00034899,3]
[424312756,1780761076000,-151.0,0.00034899,3]
[424312765,1780761076000,-290.26104002,0.00034899,3]
[424312759,1780761076000,-270.0455652,0.00034899,3]
[424312758,1780761076000,-961.58486558,0.00034899,3]
[424312757,1780761076000,-200.0,0.00034899,3]
[424312753,1780761076000,-279.9045709,0.00034899,3]
[424312755,1780761076000,-9905.59807649,0.00034899,3]
[424312830,1780761077000,-668.65185756,0.00034899,3]
[424312839,1780761077000,-500.0,0.00034899,3]
[424312831,1780761077000,-260.4103811,0.00034899,3]
[424312826,1780761077000,-151.0,0.00034899,3]
[424312827,1780761077000,-6240.52778667,0.00034899,3]
[424312828,1780761077000,-200.0,0.00034899,3]
[424312824,1780761077000,-270.0455652,0.00034899,3]
[424312823,1780761077000,-500.0,0.00034899,3]
[424312819,1780761077000,-251.11897888,0.00034899,3]
[424312840,1780761077000,-151.0,0.00034899,3]
[424312829,1780761077000,-894.19061325,0.00034899,3]
[424312833,1780761077000,-151.0,0.00034899,3]
[424312838,1780761077000,-200.0,0.00034899,3]
[424312834,1780761077000,-280.03725111,0.00034899,3]
[424312832,1780761077000,-348.0827721,0.00034899,3]
[424312837,1780761077000,-209.40437684,0.00034899,3]
[424312836,1780761077000,-151.0,0.00034899,3]
[424312842,1780761077000,-290.3986294,0.00034899,3]
[424312841,1780761077000,-200.0,0.00034899,3]
[424312844,1780761077000,-693.39197629,0.00034899,3]
[424312845,1780761077000,-200.0,0.00034899,3]
[424312843,1780761077000,-6471.42731478,0.00034899,3]
[424312846,1780761077000,-151.0,0.00034899,3]
[424312825,1780761077000,-200.0,0.00034899,3]
[424312835,1780761077000,-721.12765534,0.00034899,3]
[424312822,1780761077000,-862.28603014,0.00034899,3]
[424312796,1780761077000,-11455.01673214,0.00034899,3]
[424312820,1780761077000,-5333.73533212,0.00034899,3]
[424312793,1780761077000,-233.5188934,0.00034899,3]
[424312794,1780761077000,-312.13772435,0.00034899,3]
[424312795,1780761077000,-160.0,0.00034899,3]
[424312800,1780761077000,-160.0,0.00034899,3]
[424312797,1780761077000,-745.65223615,0.00034899,3]
[424312801,1780761077000,-242.15909246,0.00034899,3]
[424312799,1780761077000,-200.0,0.00034899,3]
[424312798,1780761077000,-233.5188934,0.00034899,3]
[424312802,1780761077000,-773.24136889,0.00034899,3]
[424312804,1780761077000,-621.78829552,0.00034899,3]
[424312803,1780761077000,-200.0,0.00034899,3]
[424312807,1780761077000,-323.68682015,0.00034899,3]
[424312805,1780761077000,-11878.85235123,0.00034899,3]
[424312806,1780761077000,-242.15909246,0.00034899,3]
[424312849,1780761077000,-151.0,0.00034899,3]
[424312809,1780761077000,-801.85129954,0.00034899,3]
[424312812,1780761077000,-12318.36988822,0.00034899,3]
[424312810,1780761077000,-187.4024643,0.00034899,3]
[424312811,1780761077000,-251.11897888,0.00034899,3]
[424312815,1780761077000,-831.51979762,0.00034899,3]
[424312816,1780761077000,-260.4103811,0.00034899,3]
[424312817,1780761077000,-644.79446245,0.00034899,3]
[424312814,1780761077000,-200.0,0.00034899,3]
[424312813,1780761077000,-200.0,0.00034899,3]
[424312818,1780761077000,-335.66323249,0.00034899,3]
[424312821,1780761077000,-200.0,0.00034899,3]
[424312848,1780761077000,-747.80937859,0.00034899,3]
[424312808,1780761077000,-200.0,0.00034899,3]
[424312851,1780761077000,-500.0,0.00034899,3]
[424312879,1780761077000,-151.0,0.00034899,3]
[424312882,1780761077000,-7216.66169591,0.00034899,3]
[424312880,1780761077000,-233.5188934,0.00034899,3]
[424312884,1780761077000,-151.0,0.00034899,3]
[424312883,1780761077000,-200.0,0.00034899,3]
[424312885,1780761077000,-773.24136889,0.00034899,3]
[424312881,1780761077000,-500.0,0.00034899,3]
[424312886,1780761077000,-151.0,0.00034899,3]
[424312888,1780761077000,-500.0,0.00034899,3]
[424312890,1780761077000,-225.18697532,0.00034899,3]
[424312891,1780761077000,-833.92535152,0.00034899,3]
[424312893,1780761077000,-242.15909246,0.00034899,3]
[424312897,1780761077000,-801.85129954,0.00034899,3]
[424312892,1780761077000,-151.0,0.00034899,3]
[424312898,1780761077000,-151.0,0.00034899,3]
[424312896,1780761077000,-200.0,0.00034899,3]
[424312895,1780761077000,-7483.67817866,0.00034899,3]
[424312889,1780761077000,-151.0,0.00034899,3]
[424312900,1780761077000,-151.0,0.00034899,3]
[424312899,1780761077000,-500.0,0.00034899,3]
[424312903,1780761077000,-1018.47859,0.000349,120]
[424312901,1780761077000,-213.41501694,0.00034899,120]
[424312902,1780761077000,-2172.83968444,0.000349,3]
[424312904,1780761077000,-359.9512,0.000349,30]
[424312847,1780761077000,-360.96183466,0.00034899,3]
[424312878,1780761077000,-804.17102365,0.00034899,3]
[424312876,1780761077000,-151.0,0.00034899,3]
[424312894,1780761077000,-500.0,0.00034899,3]
[424312877,1780761077000,-500.0,0.00034899,3]
[424312887,1780761077000,-402.52935237,0.00034899,3]
[424312850,1780761077000,-301.14337869,0.00034899,3]
[424312853,1780761077000,-217.15233878,0.00034899,3]
[424312858,1780761077000,-6710.87012543,0.00034899,3]
[424312852,1780761077000,-151.0,0.00034899,3]
[424312857,1780761077000,-200.0,0.00034899,3]
[424312855,1780761077000,-200.0,0.00034899,3]
[424312856,1780761077000,-151.0,0.00034899,3]
[424312859,1780761077000,-719.04747942,0.00034899,3]
[424312861,1780761077000,-151.0,0.00034899,3]
[424312854,1780761077000,-500.0,0.00034899,3]
[424312862,1780761077000,-374.31742255,0.00034899,3]
[424312863,1780761077000,-151.0,0.00034899,3]
[424312860,1780761077000,-209.40437684,0.00034899,3]
[424312872,1780761077000,-745.65223615,0.00034899,3]
[424312864,1780761077000,-775.4783256,0.00034899,3]
[424312873,1780761077000,-217.15233878,0.00034899,3]
[424312871,1780761077000,-151.0,0.00034899,3]
[424312869,1780761077000,-6959.17232007,0.00034899,3]
[424312870,1780761077000,-200.0,0.00034899,3]
[424312867,1780761077000,-225.18697532,0.00034899,3]
[424312875,1780761077000,-388.16716718,0.00034899,3]
[424312874,1780761077000,-151.0,0.00034899,3]
[424312868,1780761077000,-500.0,0.00034899,3]
[424312866,1780761077000,-151.0,0.00034899,3]
[424312865,1780761077000,-500.0,0.00034899,3]
[424312944,1780761078000,-152.0,0.000349,3]
[424312949,1780761078000,-154.55676498,0.000349,3]
[424312945,1780761078000,-152.0,0.000349,3]
[424312943,1780761078000,-152.0,0.000349,3]
[424312946,1780761078000,-152.0,0.000349,3]
[424312940,1780761078000,-1562.23345922,0.000349,3]
[424312934,1780761078000,-1548.0,0.000349,3]
[424312935,1780761078000,-1548.0,0.000349,3]
[424312936,1780761078000,-1548.0,0.000349,3]
[424312937,1780761078000,-1548.0,0.000349,3]
[424312948,1780761078000,-152.0,0.000349,3]
[424312941,1780761078000,-281.2612502,0.000349,3]
[424312947,1780761078000,-152.0,0.000349,3]
[424312957,1780761078000,-151.0,0.000349,3]
[424312950,1780761078000,-151.0,0.000349,3]
[424312952,1780761078000,-151.0,0.000349,3]
[424312942,1780761078000,-152.0,0.000349,3]
[424312954,1780761078000,-151.0,0.000349,3]
[424312964,1780761078000,-294.849,0.000349,13]
[424312965,1780761078000,-1253.967854,0.000349,13]
[424312956,1780761078000,-151.0,0.000349,3]
[424312955,1780761078000,-151.0,0.000349,3]
[424312958,1780761078000,-151.0,0.000349,3]
[424312953,1780761078000,-151.0,0.000349,3]
[424312963,1780761078000,-294.849,0.000349,13]
[424312933,1780761078000,-213.55,0.000349,2]
[424312951,1780761078000,-151.0,0.000349,3]
[424312931,1780761078000,-1548.0,0.000349,3]
[424312910,1780761078000,-200.0,0.000349,2]
[424312932,1780761078000,-1548.0,0.000349,3]
[424312959,1780761078000,-151.0,0.000349,3]
[424312909,1780761078000,-2000.0,0.000349,2]
[424312905,1780761078000,-1381.41,0.000349,30]
[424312907,1780761078000,-196.731,0.000349,2]
[424312906,1780761078000,-1381.41,0.000349,30]
[424312908,1780761078000,-196.731,0.000349,2]
[424312911,1780761078000,-1548.0,0.000349,3]
[424312912,1780761078000,-1548.0,0.000349,3]
[424312913,1780761078000,-1548.0,0.000349,3]
[424312915,1780761078000,-1548.0,0.000349,3]
[424312917,1780761078000,-1548.0,0.000349,3]
[424312920,1780761078000,-1548.0,0.000349,3]
[424312927,1780761078000,-1548.0,0.000349,3]
[424312921,1780761078000,-1548.0,0.000349,3]
[424312923,1780761078000,-1548.0,0.000349,3]
[424312916,1780761078000,-1548.0,0.000349,3]
[424312924,1780761078000,-1548.0,0.000349,3]
[424312922,1780761078000,-1548.0,0.000349,3]
[424312918,1780761078000,-1548.0,0.000349,3]
[424312919,1780761078000,-1548.0,0.000349,3]
[424312925,1780761078000,-1548.0,0.000349,3]
[424312928,1780761078000,-1548.0,0.000349,3]
[424312939,1780761078000,-1548.0,0.000349,3]
[424312938,1780761078000,-1548.0,0.000349,3]
[424312929,1780761078000,-1548.0,0.000349,3]
[424312930,1780761078000,-1548.0,0.000349,3]
[424312926,1780761078000,-1548.0,0.000349,3]
[424312961,1780761078000,-343.9905,0.000349,13]
[424312914,1780761078000,-1548.0,0.000349,3]
[424312962,1780761078000,-187.802803,0.000349,13]
[424312996,1780761078000,-464.41813048,0.00035,30]
[424312995,1780761078000,-6304.12,0.00035,60]
[424312999,1780761078000,-386.6651243,0.00035,120]
[424312997,1780761078000,-1584.17501542,0.00035,120]
[424312998,1780761078000,-191.87100063,0.00035,120]
[424313000,1780761078000,-329.30012343,0.00035,120]
[424313002,1780761078000,-290.0,0.00035,120]
[424313001,1780761078000,-266.03380762,0.00035,120]
[424313006,1780761078000,-308.32396778,0.00035,120]
[424313016,1780761078000,-554.51108936,0.00035,120]
[424313018,1780761078000,-248.14722908,0.00035,120]
[424313007,1780761078000,-547.88475529,0.00035,120]
[424313017,1780761078000,-1089.61072436,0.00035,120]
[424313005,1780761078000,-335.52368958,0.00035,120]
[424313008,1780761078000,-318.41420682,0.00035,120]
[424313010,1780761078000,-397.53280426,0.00035,120]
[424313009,1780761078000,-361.2537955,0.00035,120]
[424313014,1780761078000,-596.1039232,0.00035,120]
[424313023,1780761078000,-1475.42,0.00035,3]
[424313011,1780761078000,-1073.4360953,0.00035,120]
[424313013,1780761078000,-606.04571185,0.00035,120]
[424313012,1780761078000,-372.39131337,0.00035,120]
[424313015,1780761078000,-1361.18878517,0.00035,120]
[424313019,1780761078000,-1334.56681779,0.00035,120]
[424313022,1780761078000,-1475.42,0.00035,2]
[424313021,1780761078000,-894.1558848,0.00035,120]
[424312960,1780761078000,-198.86658173,0.000349,3]
[424312994,1780761078000,-890.844684,0.00035,13]
[424313003,1780761078000,-176.49218825,0.00035,120]
[424313020,1780761078000,-1965.38603372,0.00035,120]
[424312992,1780761078000,-150.0,0.00035,4]
[424313004,1780761078000,-719.72340663,0.00035,120]
[424312966,1780761078000,-200.0,0.000349,2]
[424312969,1780761078000,-200.0,0.000349,2]
[424312967,1780761078000,-1548.0,0.000349,3]
[424312974,1780761078000,-2447.0426,0.00034908,2]
[424312971,1780761078000,-200.0,0.000349,2]
[424312970,1780761078000,-2110.0,0.000349,2]
[424312973,1780761078000,-5017.8401,0.00034908,2]
[424312972,1780761078000,-2015.9045,0.00034908,2]
[424312978,1780761078000,-43072.61307167,0.00035,5]
[424312976,1780761078000,-569.56174891,0.00035,7]
[424312977,1780761078000,-347.53546068,0.00035,30]
[424312975,1780761078000,-200755.09270561,0.00035,30]
[424312968,1780761078000,-1500.0,0.000349,7]
[424312980,1780761078000,-42224.35397775,0.00035,4]
[424312991,1780761078000,-3000.0,0.00035,10]
[424312993,1780761078000,-349.72604658,0.00035,2]
[424312983,1780761078000,-239.1886457,0.00035,120]
[424312987,1780761078000,-6551.2983988,0.00035,2]
[424312986,1780761078000,-526.0,0.00035,5]
[424312984,1780761078000,-4629.9903708,0.00035,30]
[424312989,1780761078000,-570.21745218,0.00035,120]
[424312981,1780761078000,-2569.49396955,0.00035,2]
[424312982,1780761078000,-2936.79988865,0.00035,120]
[424312979,1780761078000,-166.67270827,0.00035,30]
[424312990,1780761078000,-19665.12297408,0.00035,7]
[424312985,1780761078000,-2799.20141003,0.00035,10]
[424312988,1780761078000,-1421.76410261,0.00035,7]
[424313060,1780761079000,-350.0,0.00035203,6]
[424313059,1780761079000,-159.624216,0.000352,13]
[424313062,1780761079000,-1356.73267512,0.00035249,2]
[424313061,1780761079000,-2322.0,0.00035204,11]
[424313055,1780761079000,-5017.8401,0.00035158,2]
[424313057,1780761079000,-1222.11004065,0.00035194,2]
[424313054,1780761079000,-2322.0,0.0003515,11]
[424313056,1780761079000,-1473.88363143,0.00035194,2]
[424313052,1780761079000,-252.37376491,0.0003514,2]
[424313058,1780761079000,-159.718313,0.000352,13]
[424313064,1780761079000,-200.0,0.00035249,2]
[424313074,1780761079000,-14841.77,0.00035324,30]
[424313069,1780761079000,-5017.8401,0.00035282,2]
[424313066,1780761079000,-200.0,0.00035249,2]
[424313068,1780761079000,-14212.44705825,0.00035263,2]
[424313071,1780761079000,-150.0,0.00035285,2]
[424313073,1780761079000,-177.64222158,0.00035301,120]
[424313076,1780761079000,-173.22755412,0.00035327,2]
[424313075,1780761079000,-4141.89416048,0.00035326,2]
[424313070,1780761079000,-150.0,0.00035285,2]
[424313072,1780761079000,-150.0,0.00035285,2]
[424313065,1780761079000,-200.0,0.00035249,2]
[424313053,1780761079000,-741.0,0.00035147,10]
[424313078,1780761079000,-500.0,0.00035341,120]
[424313067,1780761079000,-2015.9045,0.00035257,2]
[424313063,1780761079000,-200.0,0.00035249,2]
[424313039,1780761079000,-327.0,0.00035064,5]
[424313049,1780761079000,-3642.0,0.00035115,5]
[424313087,1780761079000,-2110.0,0.000354,2]
[424313024,1780761079000,-1475.42,0.00035,7]
[424313025,1780761079000,-1063.84859915,0.00035,7]
[424313028,1780761079000,-2250.03643175,0.00035014,2]
[424313027,1780761079000,-2322.0,0.00035005,11]
[424313026,1780761079000,-200.0,0.00035,120]
[424313029,1780761079000,-250.0,0.00035014,7]
[424313031,1780761079000,-263.66196764,0.00035014,7]
[424313030,1780761079000,-295.1819427,0.00035014,7]
[424313032,1780761079000,-615.01049066,0.00035014,7]
[424313033,1780761079000,-153.75262268,0.00035014,7]
[424313035,1780761079000,-1000.0,0.00035023,60]
[424313046,1780761079000,-4434.0,0.00035102,5]
[424313034,1780761079000,-200.0,0.00035016,2]
[424313037,1780761079000,-5017.8401,0.00035033,2]
[424313040,1780761079000,-150.0,0.00035068,14]
[424313038,1780761079000,-2288.0,0.00035051,5]
[424313041,1780761079000,-300.0,0.00035068,14]
[424313045,1780761079000,-2015.9045,0.00035083,2]
[424313047,1780761079000,-152.0,0.00035109,10]
[424313044,1780761079000,-219.1498774,0.0003508,2]
[424313048,1780761079000,-1148.94240846,0.00035114,30]
[424313050,1780761079000,-161.07028204,0.00035123,30]
[424313042,1780761079000,-320.0,0.00035068,37]
[424313043,1780761079000,-264.49989682,0.00035068,14]
[424313051,1780761079000,-1821.0,0.00035128,5]
[424313036,1780761079000,-223.73,0.0003503,30]
[424313086,1780761079000,-4082.0,0.00035365,30]
[424313085,1780761079000,-585.0,0.00035365,30]
[424313088,1780761079000,-2478.43,0.00035402,30]
[424313114,1780761079000,-223.73,0.0003546,69]
[424313113,1780761079000,-25000.0,0.00035458,10]
[424313115,1780761079000,-1799.1532044,0.00035463,120]
[424313123,1780761079000,-350.0,0.00035497,4]
[424313118,1780761079000,-2322.0,0.00035477,11]
[424313119,1780761079000,-25000.0,0.00035484,10]
[424313117,1780761079000,-25000.0,0.00035475,10]
[424313120,1780761079000,-2447.0426,0.0003549,2]
[424313116,1780761079000,-25000.0,0.00035466,10]
[424313122,1780761079000,-20850.80701839,0.00035493,2]
[424313121,1780761079000,-25000.0,0.00035493,10]
[424313125,1780761079000,-25000.0,0.00035502,10]
[424313124,1780761079000,-16992.64812045,0.000355,30]
[424313131,1780761079000,-5017.8401,0.00035532,2]
[424313127,1780761079000,-25000.0,0.0003551,10]
[424313132,1780761079000,-25000.0,0.00035537,10]
[424313126,1780761079000,-161.07028204,0.00035507,30]
[424313130,1780761079000,-7198.24,0.0003553,2]
[424313089,1780761079000,-5017.8401,0.00035407,2]
[424313129,1780761079000,-25000.0,0.00035528,10]
[424313133,1780761079000,-25000.0,0.00035546,10]
[424313135,1780761079000,-25000.0,0.00035554,10]
[424313134,1780761079000,-774.0,0.00035554,3]
[424313136,1780761079000,-25000.0,0.00035563,10]
[424313137,1780761079000,-500.0,0.00035571,30]
[424313108,1780761079000,-404.0,0.00035452,30]
[424313111,1780761079000,-873.0,0.00035452,30]
[424313128,1780761079000,-25000.0,0.00035519,10]
[424313107,1780761079000,-25000.0,0.00035449,10]
[424313109,1780761079000,-2242.0,0.00035452,30]
[424313079,1780761079000,-936.0,0.00035361,30]
[424313077,1780761079000,-151.0,0.00035331,14]
[424313080,1780761079000,-1092.0,0.00035361,30]
[424313081,1780761079000,-675.0,0.00035361,30]
[424313084,1780761079000,-948.0,0.00035365,30]
[424313083,1780761079000,-4110.0,0.00035361,30]
[424313090,1780761079000,-164.0,0.00035412,11]
[424313093,1780761079000,-1435.7028172,0.00035426,2]
[424313094,1780761079000,-1238.59107133,0.00035427,2]
[424313092,1780761079000,-1230.21372256,0.00035426,2]
[424313099,1780761079000,-3400.42787346,0.00035427,2]
[424313091,1780761079000,-1592.92514467,0.00035421,120]
[424313082,1780761079000,-2972.0,0.00035361,30]
[424313096,1780761079000,-1394.70192056,0.00035427,2]
[424313097,1780761079000,-3170.85012934,0.00035427,2]
[424313103,1780761079000,-1231.14981691,0.00035427,2]
[424313110,1780761079000,-404.0,0.00035452,30]
[424313106,1780761079000,-231.24808106,0.00035443,7]
[424313104,1780761079000,-2015.9045,0.00035432,2]
[424313101,1780761079000,-1791.02193344,0.00035427,2]
[424313112,1780761079000,-244.0,0.00035452,30]
[424313102,1780761079000,-1331.99734117,0.00035427,2]
[424313095,1780761079000,-1300.95047643,0.00035427,2]
[424313098,1780761079000,-2980.5274355,0.00035427,2]
[424313100,1780761079000,-2707.90061139,0.00035427,2]
[424313105,1780761079000,-728.26,0.00035437,7]
[424313163,1780761080000,-516.37811738,0.00035571,30]
[424313161,1780761080000,-500.0,0.00035571,30]
[424313168,1780761080000,-1283.0,0.00035589,120]
[424313159,1780761080000,-500.0,0.00035571,30]
[424313170,1780761080000,-1259.42538863,0.00035589,120]
[424313162,1780761080000,-500.0,0.00035571,30]
[424313165,1780761080000,-25000.0,0.00035581,10]
[424313167,1780761080000,-549.82467016,0.00035584,120]
[424313164,1780761080000,-25000.0,0.00035572,10]
[424313180,1780761080000,-151277.01629543,0.0003561,2]
[424313171,1780761080000,-1259.42538862,0.00035589,120]
[424313173,1780761080000,-25000.0,0.00035598,10]
[424313172,1780761080000,-25000.0,0.0003559,10]
[424313176,1780761080000,-200.0,0.00035601,2]
[424313175,1780761080000,-200.0,0.00035601,2]
[424313177,1780761080000,-200.0,0.00035601,2]
[424313178,1780761080000,-2015.9045,0.00035606,2]
[424313169,1780761080000,-1283.0,0.00035589,120]
[424313174,1780761080000,-200.0,0.00035601,2]
[424313166,1780761080000,-1086.0,0.00035583,7]
[424313158,1780761080000,-500.0,0.00035571,30]
[424313156,1780761080000,-500.0,0.00035571,30]
[424313145,1780761080000,-500.0,0.00035571,30]
[424313138,1780761080000,-500.0,0.00035571,30]
[424313143,1780761080000,-500.0,0.00035571,30]
[424313140,1780761080000,-500.0,0.00035571,30]
[424313141,1780761080000,-500.0,0.00035571,30]
[424313142,1780761080000,-500.0,0.00035571,30]
[424313139,1780761080000,-500.0,0.00035571,30]
[424313144,1780761080000,-500.0,0.00035571,30]
[424313147,1780761080000,-500.0,0.00035571,30]
[424313157,1780761080000,-500.0,0.00035571,30]
[424313146,1780761080000,-542.86096189,0.00035571,30]
[424313149,1780761080000,-500.0,0.00035571,30]
[424313152,1780761080000,-500.0,0.00035571,30]
[424313153,1780761080000,-500.0,0.00035571,30]
[424313151,1780761080000,-507.06611295,0.00035571,30]
[424313150,1780761080000,-500.0,0.00035571,30]
[424313148,1780761080000,-500.0,0.00035571,30]
[424313154,1780761080000,-500.0,0.00035571,30]
[424313155,1780761080000,-208.46582216,0.00035571,30]
[424313160,1780761080000,-500.0,0.00035571,30]
[424313181,1780761080000,-4521.55094502,0.0003561,2]
[424313185,1780761080000,-14828.72910787,0.00035616,10]
[424313188,1780761080000,-500.0,0.00035616,7]
[424313208,1780761080000,-500.0,0.00035616,7]
[424313204,1780761080000,-500.0,0.00035616,7]
[424313210,1780761080000,-500.0,0.00035616,7]
[424313206,1780761080000,-500.0,0.00035616,7]
[424313211,1780761080000,-500.0,0.00035616,7]
[424313212,1780761080000,-500.0,0.00035616,7]
[424313213,1780761080000,-500.0,0.00035616,7]
[424313218,1780761080000,-500.0,0.00035616,7]
[424313203,1780761080000,-500.0,0.00035616,7]
[424313219,1780761080000,-500.0,0.00035616,7]
[424313216,1780761080000,-500.0,0.00035616,7]
[424313214,1780761080000,-500.0,0.00035616,7]
[424313221,1780761080000,-500.0,0.00035616,7]
[424313220,1780761080000,-399.99999998,0.00035616,7]
[424313223,1780761080000,-1189.3035329,0.00035616,7]
[424313222,1780761080000,-1189.3035329,0.00035616,7]
[424313224,1780761080000,-1189.3035329,0.00035616,7]
[424313183,1780761080000,-2000.0,0.00035616,30]
[424313217,1780761080000,-500.0,0.00035616,7]
[424313209,1780761080000,-500.0,0.00035616,7]
[424313215,1780761080000,-500.0,0.00035616,7]
[424313207,1780761080000,-500.0,0.00035616,7]
[424313205,1780761080000,-500.0,0.00035616,7]
[424313184,1780761080000,-25000.0,0.00035616,10]
[424313182,1780761080000,-150.0,0.00035616,120]
[424313179,1780761080000,-25000.0,0.00035607,10]
[424313187,1780761080000,-500.0,0.00035616,7]
[424313195,1780761080000,-500.0,0.00035616,7]
[424313191,1780761080000,-500.0,0.00035616,7]
[424313197,1780761080000,-500.0,0.00035616,7]
[424313193,1780761080000,-500.0,0.00035616,7]
[424313186,1780761080000,-1000.0,0.00035616,120]
[424313190,1780761080000,-500.0,0.00035616,7]
[424313199,1780761080000,-500.0,0.00035616,7]
[424313189,1780761080000,-500.0,0.00035616,7]
[424313200,1780761080000,-500.0,0.00035616,7]
[424313194,1780761080000,-500.0,0.00035616,7]
[424313192,1780761080000,-500.0,0.00035616,7]
[424313198,1780761080000,-500.0,0.00035616,7]
[424313196,1780761080000,-500.0,0.00035616,7]
[424313201,1780761080000,-500.0,0.00035616,7]
[424313202,1780761080000,-500.0,0.00035616,7]
[424313259,1780761081000,-1172.31348243,0.00035616,7]
[424313266,1780761081000,-1172.31348243,0.00035616,7]
[424313265,1780761081000,-1172.31348243,0.00035616,7]
[424313267,1780761081000,-1172.31348243,0.00035616,7]
[424313263,1780761081000,-1172.31348243,0.00035616,7]
[424313264,1780761081000,-1172.31348243,0.00035616,7]
[424313261,1780761081000,-1172.31348243,0.00035616,7]
[424313262,1780761081000,-1172.31348243,0.00035616,7]
[424313258,1780761081000,-1172.31348243,0.00035616,7]
[424313268,1780761081000,-1172.31348243,0.00035616,7]
[424313252,1780761081000,-1189.3035329,0.00035616,7]
[424313260,1780761081000,-1172.31348243,0.00035616,7]
[424313269,1780761081000,-1172.31348243,0.00035616,7]
[424313272,1780761081000,-1172.31348243,0.00035616,7]
[424313279,1780761081000,-164.0,0.00035625,11]
[424313273,1780761081000,-1172.31348243,0.00035616,7]
[424313275,1780761081000,-1172.31348243,0.00035616,7]
[424313277,1780761081000,-1048.42,0.00035616,2]
[424313278,1780761081000,-200.74,0.00035616,30]
[424313281,1780761081000,-288.56,0.00035631,2]
[424313271,1780761081000,-1172.31348243,0.00035616,7]
[424313274,1780761081000,-1172.31348243,0.00035616,7]
[424313280,1780761081000,-151.0,0.00035631,2]
[424313276,1780761081000,-12200.0,0.00035616,120]
[424313283,1780761081000,-150.0,0.00035666,2]
[424313249,1780761081000,-1189.3035329,0.00035616,7]
[424313270,1780761081000,-1172.31348243,0.00035616,7]
[424313255,1780761081000,-1172.31348243,0.00035616,7]
[424313229,1780761081000,-1189.3035329,0.00035616,7]
[424313253,1780761081000,-1189.3035329,0.00035616,7]